fUST/lending_fUST_20260127
["ID","MTS","AMOUNT","RATE_DAILY","PERIOD"]
[403663046,1769454638708,-258.06944968,7.913e-05,2]
[403663047,1769454638718,-21524.28806092,7.915e-05,2]
[403663100,1769454640214,-800.5393888,7.915e-05,2]
[403663103,1769454640225,-2362.81077802,7.915e-05,2]
[403663105,1769454640240,-498.50505466,7.915e-05,2]
[403663566,1769454644824,-962.1005026,7.915e-05,2]
[403663568,1769454644836,-3781.88,7.915e-05,2]
[403663570,1769454644847,-5151.81426372,7.915e-05,2]
[403663580,1769454644931,-96.76391447,7.915e-05,2]
[403663688,1769454646099,-3391.49103072,7.915e-05,2]
[403663722,1769454649648,500.0,0.00034693,120]
[403663723,1769454649887,564.1,0.00034693,120]
[403663724,1769454689650,200.0,0.0001,20]
[403663725,1769454702364,500.0,0.00034693,120]
[403663726,1769454702609,500.0,0.00034693,120]
[403663727,1769454702844,500.0,0.00034693,120]
[403663728,1769454703099,500.0,0.00034693,120]
[403663729,1769454703381,500.0,0.00034693,120]
[403663730,1769454703632,503.71457345,0.00034693,120]
[403663731,1769454748876,340.60633615,0.00034693,120]
[403663732,1769454778579,500.0,0.00034693,120]
[403663733,1769454779008,500.0,0.00034693,120]
[403663734,1769454779065,500.0,0.00034693,120]
[403663735,1769454779420,500.0,0.00034693,120]
[403663736,1769454779667,500.0,0.00034693,120]
[403663737,1769454779919,500.0,0.00034693,120]
[403663738,1769454780151,498.22420788,0.00034693,120]
[403663739,1769454785282,500.0,0.00034693,120]
[403663740,1769454785513,392.45094678,0.00034693,120]
[403663745,1769454824100,500.0,0.00034693,120]
[403663746,1769454824449,162.23,0.00034693,120]
[403663748,1769454851774,500.0,0.00034684,120]
[403663770,1769455027258,500.8154264,0.00034684,120]
[403663774,1769455040138,500.0,0.00034684,120]
[403663912,1769455247927,501.00329571,0.00034692,120]
[403663913,1769455272735,500.0,0.00034692,120]
[403663914,1769455272972,500.0,0.00034692,120]
[403663915,1769455273217,500.0,0.00034692,120]
[403663916,1769455273475,161.21570727,0.00034692,120]
[403663917,1769455304935,500.0,0.00034692,120]
[403663918,1769455304982,505.85164299,0.00034692,120]
[403663920,1769455331619,500.0,0.00034692,120]
[403663921,1769455392830,500.0,0.00034692,120]
[403663922,1769455392937,500.0,0.00034692,120]
[403663923,1769455393175,500.0,0.00034692,120]
[403663924,1769455393409,500.0,0.00034692,120]
[403663925,1769455393665,500.0,0.00034692,120]
[403663926,1769455393903,500.0,0.00034692,120]
[403663927,1769455394133,500.0,0.00034692,120]
[403663928,1769455394365,500.0,0.00034692,120]
[403663929,1769455394606,500.0,0.00034692,120]
[403663930,1769455394976,500.0,0.00034692,120]
[403663931,1769455395228,500.0,0.00034692,120]
[403663932,1769455395458,500.0,0.00034692,120]
[403663933,1769455395714,500.0,0.00034692,120]
[403663934,1769455395974,500.0,0.00034692,120]
[403663935,1769455396209,500.0,0.00034692,120]
[403663936,1769455396475,382.0417409,0.00034692,120]
[403664384,1769455752124,402.0,0.00034692,120]
[403664412,1769455821377,-300.0,7.121e-05,2]
[403664413,1769455821403,-188.76576862,7.121e-05,2]
[403664414,1769455821446,-86.0034788,7.121e-05,2]
[403664439,1769455831927,-246.23075258,7.121e-05,2]
[403664441,1769455831936,-200.73424742,7.121e-05,2]
[403664442,1769455831947,-296.37,7.121e-05,2]
[403664455,1769455838025,-702.89575258,7.121e-05,2]
[403664456,1769455838036,-252.90806069,7.121e-05,2]
[403664457,1769455838045,-9318.6313813,7.122e-05,2]
[403664458,1769455838056,-8753.56388314,7.26e-05,2]
[403664459,1769455838068,-11549.20616657,7.26e-05,2]
[403664460,1769455838079,-281.04,7.26e-05,2]
[403664461,1769455838091,-29416.18995029,7.26e-05,2]
[403664462,1769455838101,-186.9857735,7.26e-05,2]
[403664463,1769455838111,-500.0,7.26e-05,2]
[403664464,1769455838121,-500.0,7.26e-05,2]
[403664465,1769455838131,-203.24553147,7.26e-05,2]
[403664466,1769455838141,-500.0,7.26e-05,2]
[403664467,1769455838150,-500.0,7.26e-05,2]
[403664468,1769455838160,-500.0,7.26e-05,2]
[403664469,1769455838169,-500.0,7.26e-05,2]
[403664470,1769455838180,-500.0,7.26e-05,2]
[403664471,1769455838190,-576.98777852,7.26e-05,2]
[403664472,1769455838200,-390.05898317,7.26e-05,2]
[403664473,1769455838210,-377.02881103,7.26e-05,2]
[403664474,1769455838220,-439.9663516,7.26e-05,2]
[403664475,1769455838231,-256.194,7.261e-05,2]
[403664476,1769455838241,-300.0,7.263e-05,2]
[403664477,1769455838251,-300.0,7.263e-05,2]
[403664478,1769455838260,-300.0,7.263e-05,2]
[403664479,1769455838271,-300.0,7.263e-05,2]
[403664480,1769455838281,-300.0,7.263e-05,2]
[403664481,1769455838291,-300.0,7.263e-05,2]
[403664482,1769455838300,-300.0,7.263e-05,2]
[403664483,1769455838310,-300.0,7.263e-05,2]
[403664484,1769455838320,-300.0,7.263e-05,2]
[403664485,1769455838330,-300.0,7.263e-05,2]
[403664486,1769455838340,-300.0,7.263e-05,2]
[403664487,1769455838353,-300.0,7.263e-05,2]
[403664488,1769455838363,-300.0,7.263e-05,2]
[403664489,1769455838373,-300.0,7.263e-05,2]
[403664490,1769455838384,-300.0,7.263e-05,2]
[403664491,1769455838394,-600.0,7.407e-05,2]
[403664492,1769455838404,-1000000.0,7.814e-05,2]
[403664493,1769455838414,-156.1662691,7.914e-05,2]
[403664494,1769455838423,-3143.9152532,7.914e-05,2]
[403664495,1769455838434,-720.0,8.148e-05,2]
[403664496,1769455838443,-500.0,8.219e-05,2]
[403664497,1769455838453,-303.74794898,8.219e-05,2]
[403664498,1769455838462,-864.0,8.963e-05,2]
[403664499,1769455838472,-298.43151162,9.121e-05,2]
[403664500,1769455838482,-157.18983656,9.361e-05,2]
[403664501,1769455838492,-179.21510393,9.361e-05,2]
[403664502,1769455838502,-1669.06941197,9.44e-05,2]
[403664503,1769455838512,-179.21510393,9.651e-05,2]
[403664504,1769455838522,-1000.0,9.859e-05,2]
[403664505,1769455838532,-151.0,0.0001,2]
[403664506,1769455838542,-151.0,0.0001,2]
[403664507,1769455838555,-151.0,0.0001,2]
[403664508,1769455838565,-151.0,0.0001,2]
[403664509,1769455838575,-151.0,0.0001,2]
[403664510,1769455838585,-151.0,0.0001,2]
[403664511,1769455838595,-151.0,0.0001,2]
[403664512,1769455838605,-286.23816441,0.0001,2]
[403664513,1769455838618,-1000.0,0.00010845,2]
[403664514,1769455838629,-244.0,0.00010845,2]
[403664515,1769455838638,-343.95496254,0.00011121,2]
[403664516,1769455838648,-1000.0,0.00011929,2]
[403664517,1769455838658,-492.0,0.00011929,2]
[403664518,1769455838669,-1473.89,0.00012329,2]
[403664519,1769455838682,-1228.24,0.00012329,2]
[403664520,1769455838694,-151.0,0.000125,2]
[403664521,1769455838705,-151.0,0.000128,2]
[403664522,1769455838715,-151.0,0.000131,2]
[403664523,1769455838725,-389.47841346,0.00013121,2]
[403664524,1769455838735,-1000.0,0.00013122,2]
[403664525,1769455838746,-791.0,0.00013122,2]
[403664526,1769455838756,-500.0,0.00013273,2]
[403664527,1769455838766,-500.0,0.00013273,2]
[403664528,1769455838777,-500.0,0.00013273,2]
[403664529,1769455838787,-501.2138829,0.00013273,2]
[403664530,1769455838798,-500.0,0.00013273,2]
[403664531,1769455838809,-500.0,0.00013273,2]
[403664532,1769455838819,-160.0,0.0001334,2]
[403664533,1769455838829,-1041.66666667,0.0001334,2]
[403664534,1769455838839,-151.0,0.000134,2]
[403664535,1769455838850,-298.46,0.000135,2]
[403664536,1769455838861,-298.46,0.000136,2]
[403664537,1769455838871,-172.07,0.000136,2]
[403664538,1769455838881,-172.07,0.000136,2]
[403664539,1769455838892,-172.07,0.000136,2]
[403664540,1769455838902,-172.07,0.000136,2]
[403664541,1769455838912,-172.07,0.000136,2]
[403664542,1769455838922,-172.05,0.000136,2]
[403664543,1769455838934,-180.0,0.00013698,2]
[403664544,1769455838944,-500.0,0.00013699,2]
[403664545,1769455838954,-500.0,0.00013699,2]
[403664546,1769455838965,-500.0,0.00013699,2]
[403664547,1769455838975,-500.0,0.00013699,2]
[403664548,1769455838986,-500.0,0.00013699,2]
[403664549,1769455838996,-180.44093283,0.00013699,2]
[403664550,1769455839007,-500.0,0.00013699,2]
[403664551,1769455839017,-500.0,0.00013699,2]
[403664552,1769455839027,-500.0,0.00013699,2]
[403664553,1769455839037,-2000.0,0.00013699,7]
[403664554,1769455839046,-298.46,0.000137,2]
[403664555,1769455839056,-151.0,0.000137,2]
[403664556,1769455839067,-151.0,0.000137,2]
[403664557,1769455839077,-1000.0,0.00013821,2]
[403664558,1769455839088,-1000.0,0.00013821,2]
[403664559,1769455839098,-1000.0,0.00013821,2]
[403664560,1769455839109,-983.72815324,0.00013821,2]
[403664561,1769455839120,-1000.0,0.00013821,2]
[403664562,1769455839130,-10000.0,0.00013853,2]
[403664563,1769455839140,-10000.0,0.00013953,2]
[403664564,1769455839150,-100000.0,0.0001399,2]
[403664565,1769455839161,-4581.14551655,0.00014,2]
[403664566,1769455839171,-223.48791051,0.00014098,2]
[403664567,1769455839182,-402.27823892,0.00014098,2]
[403664568,1769455839193,-715.16131364,0.00014098,2]
[403664569,1769455839203,-596.0353396,0.00014098,2]
[403664570,1769455839213,-1072.86361128,0.00014098,2]
[403664571,1769455839223,-1907.31308672,0.00014098,2]
[403664572,1769455839232,-2980.17669801,0.00014098,2]
[403664573,1769455839242,-338.60245616,0.00014247,2]
[403664574,1769455839252,-1000.0,0.00014247,2]
[403664575,1769455839262,-1000.0,0.00014368,2]
[403664576,1769455839272,-1500.0,0.00014368,2]
[403664577,1769455839281,-1000.0,0.00014368,2]
[403664578,1769455839291,-1500.0,0.00014368,2]
[403664579,1769455839300,-401.75001225,0.00014375,2]
[403664580,1769455839310,-1964.33388634,0.00014375,2]
[403664581,1769455839319,-1000.0,0.00014435,2]
[403664582,1769455839329,-1000.0,0.00014435,2]
[403664583,1769455839338,-1500.0,0.00014795,2]
[403664584,1769455839348,-383.08612849,0.0001484,2]
[403664585,1769455839358,-689.55503128,0.0001484,2]
[403664586,1769455839368,-1225.87561117,0.0001484,2]
[403664587,1769455839378,-1915.43064246,0.0001484,2]
[403664588,1769455839388,-151.0,0.00014856,2]
[403664589,1769455839397,-151.0,0.00014856,2]
[403664590,1769455839406,-500.0,0.00014856,2]
[403664591,1769455839416,-500.0,0.00014856,2]
[403664593,1769455839425,-500.0,0.00014856,2]
[403664595,1769455839435,-500.0,0.00014856,2]
[403664597,1769455839444,-151.0,0.00014856,2]
[403664598,1769455839453,-151.0,0.00014856,2]
[403664599,1769455839462,-500.0,0.00014856,2]
[403664600,1769455839471,-151.0,0.00014856,2]
[403664601,1769455839481,-255.04015786,0.00014856,2]
[403664602,1769455839492,-201.93286098,0.00014856,2]
[403664603,1769455839501,-500.0,0.00014856,2]
[403664604,1769455839511,-151.0,0.00014856,2]
[403664605,1769455839521,-201.93286099,0.00014856,2]
[403664606,1769455839530,-250.0,0.00014856,2]
[403664607,1769455839540,-500.0,0.00014856,2]
[403664608,1769455839549,-151.0,0.00014856,2]
[403664609,1769455839558,-250.0,0.00014856,2]
[403664610,1769455839568,-209.40437684,0.00014856,2]
[403664611,1769455839577,-500.0,0.00014856,2]
[403664612,1769455839587,-152.99083282,0.00014856,2]
[403664613,1769455839596,-250.0,0.00014856,2]
[403664614,1769455839606,-217.15233878,0.00014856,2]
[403664615,1769455839615,-500.0,0.00014856,2]
[403664616,1769455839624,-225.18697532,0.00014856,2]
[403664617,1769455839639,-250.0,0.00014856,2]
[403664618,1769455839648,-500.0,0.00014856,2]
[403664619,1769455839657,-233.51889341,0.00014856,2]
[403664620,1769455839667,-256.17986257,0.00014856,2]
[403664621,1769455839677,-500.0,0.00014856,2]
[403664622,1769455839690,-242.15909246,0.00014856,2]
[403664623,1769455839700,-500.0,0.00014856,2]
[403664624,1769455839710,-251.11897888,0.00014856,2]
[403664625,1769455839719,-260.4103811,0.00014856,2]
[403664626,1769455839728,-270.0455652,0.00014856,2]
[403664627,1769455839737,-280.03725112,0.00014856,2]
[403664628,1769455839746,-290.39862941,0.00014856,2]
[403664629,1769455839756,-301.1433787,0.00014856,2]
[403664637,1769455839928,-2674.60743027,0.00014856,2]
[403664639,1769455839938,-24104.87168654,0.00014856,2]
[403664640,1769455839947,-151.0,0.00014856,2]
[403664642,1769455839957,-553.64373807,0.00014856,2]
[403664644,1769455839966,-2000.0,0.00014916,2]
[403664645,1769455839976,-1475.94196246,0.00014916,2]
[403664646,1769455839985,-2150.0,0.00014925,2]
[403664649,1769455839997,-418.0,0.00014925,2]
[403664651,1769455840006,-179.0,0.00014925,2]
[403664653,1769455840016,-879.628887,0.00015068,2]
[403664655,1769455840025,-503.01,0.000151,2]
[403664657,1769455840034,-435.00186439,0.00015121,2]
[403664659,1769455840043,-1263.19536473,0.00015132,2]
[403664661,1769455840052,-2000.0,0.00015342,2]
[403664663,1769455840062,-7743.65830695,0.00015364,2]
[403664665,1769455840071,-465121.86029389,0.000154,2]
[403664667,1769455840085,-5877.06166211,0.000154,2]
[403664669,1769455840096,-3290.03290905,0.000154,2]
[403664672,1769455840109,-268.61921822,0.000154,2]
[403664685,1769455840225,-1207.2537685,0.000154,2]
[403664687,1769455840236,-743.36268876,0.000154,2]
[403664689,1769455840247,-50601.9576073,0.000154,2]
[403664691,1769455840259,-1061.69153269,0.000154,2]
[403664695,1769455840280,-275.59308173,7.259e-05,2]
[403664697,1769455840289,-2644.08110924,0.000154,2]
[403664999,1769455843336,-500.0,7.259e-05,2]
[403665002,1769455843346,-343.72021,7.259e-05,2]
[403665005,1769455843358,-156.27979,7.259e-05,2]
[403665007,1769455843368,-262.65878618,0.00012329,2]
[403665253,1769455846259,-760.87121382,0.00012329,2]
[403665254,1769455846269,-112587.22975459,0.000154,2]
[403665255,1769455846281,-12419.9523964,0.000154,2]
[403665256,1769455846292,-705.0,0.000154,2]
[403665279,1769455857500,175.22086428,7.259e-05,2]
[403665283,1769455876780,313.54490434,0.00011551,2]
[403665286,1769455923986,561.81015946,0.00034692,120]
[403665431,1769456308722,500.29519923,0.00034666,120]
[403665548,1769456419651,501.57064456,0.00034702,120]
[403665797,1769456829128,-298.46,9.6e-05,2]
[403665798,1769456829148,-554.0,9.6e-05,2]
[403665799,1769456829168,-91.54952162,9.618e-05,2]
[403665966,1769457032116,-1249.50691396,0.00010512,2]
[403665967,1769457032139,-962.90483742,0.00010512,2]
[403665968,1769457032150,-514.69717787,0.00010512,2]
[403665969,1769457032161,-809.67449951,0.00010512,2]
[403665970,1769457032172,-424.98544263,0.00010512,2]
[403665976,1769457038188,-1038.23112861,0.00010512,2]
[403665977,1769457038199,-235.43746169,0.00010512,2]
[403665978,1769457038210,-331.56253831,0.00010512,2]
[403665979,1769457038219,-172.75746169,0.00010618,2]
[403665980,1769457038240,-113.16157607,0.00010618,2]
[403665982,1769457038250,-300.0,0.00010721,2]
[403665983,1769457038260,-300.0,0.00010721,2]
[403665984,1769457038270,-300.0,0.00010721,2]
[403665985,1769457038282,-300.0,0.00010721,2]
[403665986,1769457038292,-300.0,0.00010721,2]
[403665987,1769457038301,-300.0,0.00010721,2]
[403665988,1769457038311,-300.0,0.00010721,2]
[403665989,1769457038321,-300.0,0.00010721,2]
[403665990,1769457038331,-300.0,0.00010721,2]
[403665991,1769457038341,-300.0,0.00010721,2]
[403665992,1769457038351,-300.0,0.00010721,2]
[403665993,1769457038361,-300.0,0.00010721,2]
[403665994,1769457038371,-300.0,0.00010721,2]
[403665995,1769457038380,-300.0,0.00010721,2]
[403665996,1769457038390,-300.0,0.00010721,2]
[403665997,1769457038400,-600.0,0.00010934,2]
[403665998,1769457038409,-990416.54148582,0.00011783,2]
[403665999,1769457038421,-1330.50133837,0.00011783,2]
[403666000,1769457038432,-1259.761708,0.00011783,2]
[403666350,1769457043484,-428.52274918,0.00011783,2]
[403666590,1769457046423,-4484.09142645,0.00011783,2]
[403666631,1769457335636,600.0,0.00034652,120]
[403666632,1769457422228,522.88432766,0.00034652,120]
[403666647,1769457462980,502.48090509,0.00034652,120]
[403666677,1769457469848,154.76274209,0.00034652,120]
[403666916,1769457768255,500.86584836,0.0003466,120]
[403666917,1769457772090,501.8341531,0.0003466,120]
[403666918,1769457775602,500.0,0.0003466,120]
[403666919,1769457782730,501.56920484,0.0003466,120]
[403666920,1769457822632,500.0,0.0003466,120]
[403667077,1769458120689,258.17766963,0.0003466,120]
[403667177,1769458232215,-577.0,0.00011199,2]
[403667178,1769458232224,-79.99127554,0.00011199,2]
[403667187,1769458238486,-919.00872446,0.00011199,2]
[403667189,1769458238495,-280.200657,0.0001127,2]
[403667190,1769458238505,-300.41429824,0.00012057,2]
[403667191,1769458238514,-300.0,0.00012199,2]
[403667192,1769458238523,-151.0,0.000122,2]
[403667193,1769458238533,-151.0,0.000122,2]
[403667194,1769458238543,-151.0,0.000122,2]
[403667195,1769458238553,-151.0,0.000122,2]
[403667196,1769458238563,-151.0,0.000122,2]
[403667197,1769458238573,-151.0,0.000122,2]
[403667198,1769458238583,-151.0,0.000122,2]
[403667199,1769458238593,-151.0,0.000122,2]
[403667200,1769458238603,-151.0,0.000122,2]
[403667201,1769458238612,-151.0,0.000122,2]
[403667202,1769458238622,-562.62356429,0.00012228,2]
[403667203,1769458238633,-175.22086428,0.00012228,2]
[403667204,1769458238643,-116413.98421198,0.00012229,2]
[403667205,1769458238654,-700.10969055,0.00012229,2]
[403667206,1769458238666,-5726.5341894,0.00012229,2]
[403667207,1769458238678,-21476.65788305,0.00012229,2]
[403667208,1769458238689,-7867.23047152,0.00012229,2]
[403667209,1769458238700,-15003.64238732,0.00012229,2]
[403667210,1769458238723,-755.29110468,0.00012229,2]
[403667520,1769458246652,-1863.03158687,0.00012229,2]
[403667566,1769458383655,332.38134617,0.0003466,120]
[403667567,1769458387717,500.0,0.0003466,120]
[403667568,1769458387956,500.0,0.0003466,120]
[403667569,1769458388193,500.0,0.0003466,120]
[403667570,1769458388433,500.0,0.0003466,120]
[403667571,1769458388696,500.0,0.0003466,120]
[403667572,1769458388955,500.0,0.0003466,120]
[403667574,1769458402836,515.74505872,0.0003466,120]
[403667615,1769458516745,500.0,0.00034655,120]
[403667616,1769458516975,500.0,0.00034655,120]
[403667617,1769458517616,500.0,0.00034655,120]
[403667618,1769458517858,500.74498956,0.00034655,120]
[403667619,1769458518612,500.0,0.00034655,120]
[403667620,1769458518867,500.0,0.00034655,120]
[403667621,1769458519149,500.0,0.00034655,120]
[403667622,1769458519393,500.0,0.00034655,120]
[403667667,1769458830258,500.0,0.0003466,120]
[403667668,1769458830509,500.0,0.0003466,120]
[403667670,1769458830842,500.89583495,0.0003466,120]
[403667671,1769458832709,500.0,0.0003466,120]
[403667672,1769458832950,500.0,0.0003466,120]
[403667673,1769458833197,503.97933357,0.0003466,120]
[403667678,1769458850222,500.0,0.0003466,120]
[403667679,1769458850456,500.0,0.0003466,120]
[403667680,1769458850681,500.0,0.0003466,120]
[403667681,1769458850913,500.0,0.0003466,120]
[403667682,1769458851155,500.0,0.0003466,120]
[403667683,1769458851395,500.0,0.0003466,120]
[403667684,1769458857637,500.0,0.0003466,120]
[403667685,1769458857806,500.0,0.0003466,120]
[403667686,1769458858078,500.0,0.0003466,120]
[403667687,1769458858308,500.0,0.0003466,120]
[403667688,1769458858653,500.0,0.0003466,120]
[403667689,1769458858939,500.0,0.0003466,120]
[403667690,1769458859386,601.25,0.0003466,120]
[403667691,1769458863120,500.0,0.0003466,120]
[403667693,1769458863366,500.0,0.0003466,120]
[403667694,1769458863610,500.0,0.0003466,120]
[403667695,1769458863865,500.0,0.0003466,120]
[403667696,1769458864105,500.0,0.0003466,120]
[403667697,1769458864338,500.0,0.0003466,120]
[403667698,1769458864585,501.84396708,0.0003466,120]
[403667746,1769459134137,-588.0,0.00011954,2]
[403667747,1769459134159,-274.59664386,0.00011954,2]
[403667748,1769459134180,-204.955,0.00011984,2]
[403667749,1769459134200,-167.22280829,0.00012057,2]
[403667750,1769459134226,-168014.79392985,0.00012129,2]
[403667768,1769459228083,-187.92355363,0.00012128,2]
[403667769,1769459228107,-300.0,0.00012128,2]
[403667770,1769459228134,-83348.10304937,0.00012129,2]
[403667776,1769459236558,500.0,0.0003466,120]
[403667777,1769459236834,500.0,0.0003466,120]
[403667779,1769459239763,500.0,0.0003466,120]
[403667780,1769459240364,500.0,0.0003466,120]
[403667781,1769459240608,500.0,0.0003466,120]
[403667782,1769459240890,221.52039037,0.0003466,120]
[403667783,1769459242097,-49417.33706953,0.00012129,2]
[403667784,1769459242119,-393.836495,0.00012228,2]
[403667785,1769459242139,-2307.27,0.00012329,2]
[403667786,1769459242160,-1922.73,0.00012329,2]
[403667787,1769459242180,-1602.27,0.00012329,2]
[403667788,1769459242201,-1335.23,0.00012329,2]
[403667789,1769459242223,-1112.69,0.00012329,2]
[403667790,1769459242243,-927.24,0.00012329,2]
[403667791,1769459242263,-772.7,0.00012329,2]
[403667792,1769459242283,-643.92,0.00012329,2]
[403667793,1769459242301,-536.6,0.00012329,2]
[403667794,1769459242320,-447.17,0.00012329,2]
[403667795,1769459242339,-372.64,0.00012329,2]
[403667796,1769459242358,-310.53,0.00012329,2]
[403667797,1769459242378,-258.78,0.00012329,2]
[403667799,1769459242397,-215.65,0.00012329,2]
[403667800,1769459242416,-215.65,0.00012329,2]
[403667801,1769459242436,-862.6,0.00012329,2]
[403667802,1769459242459,-300.0,0.00012361,2]
[403667803,1769459242479,-300.0,0.00012361,2]
[403667804,1769459242502,-300.0,0.00012361,2]
[403667805,1769459242528,-300.0,0.00012361,2]
[403667806,1769459242553,-300.0,0.00012361,2]
[403667808,1769459242574,-300.0,0.00012361,2]
[403667809,1769459242597,-300.0,0.00012361,2]
[403667810,1769459242619,-300.0,0.00012361,2]
[403667811,1769459242642,-300.0,0.00012361,2]
[403667812,1769459242663,-300.0,0.00012361,2]
[403667813,1769459242686,-300.0,0.00012361,2]
[403667814,1769459242708,-300.0,0.00012361,2]
[403667815,1769459242731,-300.0,0.00012361,2]
[403667816,1769459242752,-300.0,0.00012361,2]
[403667817,1769459242774,-300.0,0.00012361,2]
[403667818,1769459242794,-150.0,0.00012547,2]
[403667819,1769459242814,-500.0,0.00012547,2]
[403667820,1769459242835,-500.0,0.00012547,2]
[403667821,1769459242854,-500.0,0.00012547,2]
[403667822,1769459242873,-201.4653447,0.00012547,2]
[403667823,1769459242893,-150.0,0.00012547,2]
[403667824,1769459242912,-150.0,0.00012547,2]
[403667825,1769459242931,-500.0,0.00012547,2]
[403667826,1769459242950,-500.0,0.00012547,2]
[403667827,1769459242969,-500.0,0.00012547,2]
[403667828,1769459242989,-150.0,0.00012547,2]
[403667830,1769459243008,-150.0,0.00012547,2]
[403667831,1769459243029,-284.11423251,0.00012547,2]
[403667832,1769459243054,-600.0,0.00012574,2]
[403667833,1769459243075,-150.0,0.00012684,2]
[403667834,1769459243096,-500.0,0.00012684,2]
[403667835,1769459243116,-500.0,0.00012684,2]
[403667836,1769459243137,-542.45970376,0.00012684,2]
[403667837,1769459243158,-150.0,0.00012684,2]
[403667838,1769459243178,-150.0,0.00012684,2]
[403667839,1769459243197,-500.0,0.00012684,2]
[403667840,1769459243217,-500.0,0.00012684,2]
[403667841,1769459243236,-500.0,0.00012684,2]
[403667842,1769459243256,-150.0,0.00012684,2]
[403667843,1769459243274,-206.35919753,0.00012684,2]
[403667844,1769459243294,-500.0,0.00012684,2]
[403667845,1769459243313,-200.77708875,0.00012821,2]
[403667846,1769459243331,-256.61357181,0.00012821,2]
[403667847,1769459243351,-500.0,0.00012821,2]
[403667848,1769459243369,-200.0,0.00012821,2]
[403667849,1769459243388,-200.0,0.00012821,2]
[403667850,1769459243409,-500.0,0.00012821,2]
[403667851,1769459243427,-400.0,0.00012821,2]
[403667852,1769459243446,-500.0,0.00012821,2]
[403667853,1769459243465,-276.5968545,0.00012821,2]
[403667854,1769459243484,-29404.74534189,0.00012821,2]
[403667855,1769459243501,-151.0,0.00012821,2]
[403667856,1769459243523,-151.0,0.00012821,2]
[403667857,1769459243543,-151.0,0.00012821,2]
[403667858,1769459243564,-201.93286099,0.00012821,2]
[403667859,1769459243583,-151.0,0.00012821,2]
[403667860,1769459243606,-209.40437684,0.00012821,2]
[403667861,1769459243627,-217.15233878,0.00012821,2]
[403667862,1769459243648,-151.0,0.00012821,2]
[403667863,1769459243671,-225.18697532,0.00012821,2]
[403667864,1769459243694,-233.51889341,0.00012821,2]
[403667865,1769459243714,-151.0,0.00012821,2]
[403667866,1769459243736,-242.15909246,0.00012821,2]
[403667868,1769459243756,-152.99083282,0.00012821,2]
[403667869,1769459243776,-201.93286098,0.00012821,2]
[403667870,1769459243799,-500.0,0.00012821,2]
[403667871,1769459243821,-251.11897888,0.00012821,2]
[403667872,1769459243842,-500.0,0.00012821,2]
[403667873,1769459243862,-151.0,0.00012821,2]
[403667874,1769459243884,-260.4103811,0.00012821,2]
[403667875,1769459243907,-500.0,0.00012821,2]
[403667876,1769459243928,-255.04015786,0.00012821,2]
[403667877,1769459243951,-270.0455652,0.00012821,2]
[403667878,1769459243972,-500.0,0.00012821,2]
[403667879,1769459243994,-280.03725112,0.00012821,2]
[403667880,1769459244016,-500.0,0.00012821,2]
[403667881,1769459244037,-290.39862941,0.00012821,2]
[403667882,1769459244058,-301.1433787,0.00012821,2]
[403667883,1769459244079,-500.0,0.00012821,2]
[403667884,1769459244101,-500.0,0.00012821,2]
[403667885,1769459244122,-500.0,0.00012821,2]